fUST/lending_fUST_20250501
["ID","MTS","AMOUNT","RATE_DAILY","PERIOD"]
[359548579,1746105040796,-500.0,0.00022362,2]
[359548581,1746105040805,-500.0,0.00022362,2]
[359548583,1746105040815,-500.0,0.00022362,2]
[359548585,1746105040825,-500.0,0.00022362,2]
[359548587,1746105040836,-500.0,0.00022362,2]
[359548589,1746105040846,-500.0,0.00022362,2]
[359548592,1746105040857,-500.0,0.00022362,2]
[359548594,1746105040866,-500.0,0.00022362,2]
[359548596,1746105040876,-59783.7243231,0.00022711,2]
[359548598,1746105040886,-24900.0,0.00022711,2]
[359548600,1746105040895,-200.0,0.00023,2]
[359548602,1746105040905,-502.32050621,0.00023129,2]
[359548604,1746105040915,-500.0,0.00023129,2]
[359548606,1746105040924,-506.40841199,0.00023129,2]
[359548608,1746105040933,-500.0,0.00023129,2]
[359548610,1746105040943,-500.0,0.00023129,2]
[359548612,1746105040952,-474.08935612,0.0002316,2]
[359548614,1746105040962,-500.0,0.00023186,2]
[359548616,1746105040972,-250.0,0.00023227,2]
[359548618,1746105040982,-500.0,0.0002325,2]
[359548620,1746105040991,-500.0,0.0002325,2]
[359548622,1746105041001,-500.0,0.0002325,2]
[359548624,1746105041010,-500.0,0.0002334,2]
[359548626,1746105041020,-500.0,0.0002334,2]
[359548628,1746105041030,-500.0,0.00023663,2]
[359548631,1746105041042,-212.17294433,0.00023663,2]
[359548633,1746105041052,-178.17792084,0.000238,2]
[359548635,1746105041061,-500.0,0.000238,2]
[359548637,1746105041071,-500.0,0.000238,2]
[359548638,1746105041080,-230.9059633,0.000238,2]
[359548641,1746105041091,-579.39021481,0.000238,2]
[359548643,1746105041101,-500.0,0.000238,2]
[359548645,1746105041113,-200.97358143,0.000238,2]
[359548646,1746105041124,-300.0,0.000238,2]
[359548648,1746105041134,-501.58269039,0.00024,2]
[359548650,1746105041144,-500.0,0.00024,2]
[359548653,1746105041154,-538.07893285,0.00024,2]
[359548655,1746105041163,-500.70068139,0.00024043,2]
[359548657,1746105041173,-1680.0,0.00024072,2]
[359548659,1746105041183,-700.08361546,0.00024199,2]
[359548661,1746105041193,-360.0,0.00024351,3]
[359548662,1746105041202,-360.0,0.00024351,3]
[359548664,1746105041212,-360.0,0.00024351,3]
[359548667,1746105041222,-500.0,0.0002478,2]
[359548668,1746105041231,-32599.72702516,0.000249,2]
[359548804,1746105043399,-360.0,0.00024351,3]
[359548805,1746105043408,-360.0,0.00024351,3]
[359548806,1746105043418,-360.0,0.00024351,3]
[359548807,1746105043428,-5664.78858942,0.000249,2]
[359548810,1746105043685,-159.9897165,0.00024351,3]
[359548830,1746105046406,-200.0102835,0.00024351,3]
[359548831,1746105046416,-360.0,0.00024351,3]
[359548832,1746105046426,-308.29041165,0.00024351,3]
[359548833,1746105046436,-1056.56538359,0.000249,2]
[359548834,1746105046536,-1490.51357257,0.000249,2]
[359548835,1746105050164,-220.93177949,0.000249,2]
[359548847,1746105074394,-373.42429575,0.00022362,2]
[359548848,1746105078353,-126.57570425,0.00022362,2]
[359548849,1746105078382,-105.58087283,0.00022362,2]
[359548850,1746105083042,-177.41597393,0.00022362,2]
[359548851,1746105086025,-217.00315324,0.00022362,2]
[359548852,1746105086054,-1.63571186,0.00022362,2]
[359548853,1746105094618,-214.26604211,0.00022362,2]
[359548855,1746105120034,-168.8579987,0.00021046,2]
[359548856,1746105128633,-81.1420013,0.00021046,2]
[359548857,1746105128656,-153.77658794,0.00021187,2]
[359548858,1746105132916,-91.95317642,0.00021187,2]
[359548859,1746105146659,-150.0,0.000228,2]
[359548860,1746105146683,-500.0,0.00023129,2]
[359548861,1746105173157,500.0,0.00022362,2]
[359548862,1746105173212,500.0,0.00022362,2]
[359548863,1746105173259,500.0,0.00022362,2]
[359548864,1746105173311,500.0,0.00022362,2]
[359548865,1746105173562,500.0,0.00022362,2]
[359548866,1746105173597,500.0,0.00022362,2]
[359548867,1746105173626,500.0,0.00022362,2]
[359548868,1746105173656,500.0,0.00022362,2]
[359548869,1746105173686,500.0,0.00022362,2]
[359548870,1746105173716,500.0,0.00022362,2]
[359548871,1746105173744,500.0,0.00022362,2]
[359548872,1746105173793,500.0,0.00022362,2]
[359548873,1746105173828,500.0,0.00022362,2]
[359548874,1746105173858,500.0,0.00022362,2]
[359548875,1746105173894,500.0,0.00022362,2]
[359548876,1746105173938,500.0,0.00022362,2]
[359548877,1746105173993,500.0,0.00022362,2]
[359548878,1746105174040,500.0,0.00022362,2]
[359548879,1746105174094,500.0,0.00022362,2]
[359548880,1746105174195,500.0,0.00022362,2]
[359548881,1746105174246,1.0,0.00022362,2]
[359548882,1746105174273,160.0,0.00022362,2]
[359548883,1746105174618,-160.0,0.00022362,2]
[359548884,1746105178573,-179.0,0.00022362,2]
[359548885,1746105178601,-71.0,0.00022362,2]
[359548888,1746105214139,-300.0,0.00022361,2]
[359548889,1746105214166,-429.0,0.00022362,2]
[359548890,1746105214195,-500.0,0.00022362,2]
[359548891,1746105214222,-500.0,0.00022362,2]
[359548892,1746105214248,-500.0,0.00022362,2]
[359548893,1746105214274,-500.0,0.00022362,2]
[359548894,1746105214299,-500.0,0.00022362,2]
[359548895,1746105214324,-500.0,0.00022362,2]
[359548896,1746105214348,-500.0,0.00022362,2]
[359548897,1746105214372,-500.0,0.00022362,2]
[359548898,1746105214397,-500.0,0.00022362,2]
[359548899,1746105214422,-500.0,0.00022362,2]
[359548900,1746105214450,-500.0,0.00022362,2]
[359548901,1746105214477,-500.0,0.00022362,2]
[359548902,1746105214502,-500.0,0.00022362,2]
[359548903,1746105214527,-329.26803213,0.00022362,2]
[359548904,1746105214552,-500.0,0.00022362,2]
[359548905,1746105214576,-500.0,0.00022362,2]
[359548906,1746105214601,-500.0,0.00022362,2]
[359548907,1746105214625,-500.0,0.00022362,2]
[359548908,1746105214649,-500.0,0.00022362,2]
[359548909,1746105214674,-500.0,0.00022362,2]
[359548910,1746105214699,-500.0,0.00022362,2]
[359548911,1746105214724,-500.0,0.00022362,2]
[359548912,1746105214749,-500.0,0.00022362,2]
[359548913,1746105214774,-500.0,0.00022362,2]
[359548914,1746105214805,-37.73196787,0.00022362,2]
[359548915,1746105225543,-153.02386508,0.00021046,2]
[359548916,1746105228048,-61.24217703,0.00021046,2]
[359548917,1746105233376,-153.29836822,0.00021087,2]
[359548918,1746105239689,-96.70163178,0.00021087,2]
[359548919,1746105308909,151.0,0.00018585,2]
[359548926,1746106071677,2041.93360403,0.00018,2]
[359548927,1746106071703,2889.0,0.00018,2]
[359548928,1746106075320,-170.77733214,0.00018,2]
[359548929,1746106080984,-160.0,0.00018,2]
[359548930,1746106082362,300.0,0.00017999,2]
[359548931,1746106083511,-300.0,0.00018,2]
[359548933,1746106086929,-300.0,0.00018,2]
[359548934,1746106089304,-277.62277488,0.00018,2]
[359548935,1746106094277,-1000.0,0.00018,2]
[359548936,1746106096361,2098.54762459,0.000125,2]
[359548937,1746106098622,-2521.58080575,0.00018,2]
[359548938,1746106101651,-537.73383512,0.00018,2]
[359548939,1746106105863,825.64488063,0.000176,2]
[359548940,1746106106865,-1059.98080575,0.00018,2]
[359548941,1746106110139,-177.00324184,0.00018,2]
[359548942,1746106113953,500.0,0.00017999,2]
[359548943,1746106114048,500.0,0.00017999,2]
[359548944,1746106114095,500.0,0.00017999,2]
[359548945,1746106114141,500.0,0.00017999,2]
[359548946,1746106114184,500.0,0.00017999,2]
[359548947,1746106114298,500.0,0.00017999,2]
[359548948,1746106114348,500.0,0.00017999,2]
[359548949,1746106114397,500.0,0.00017999,2]
[359548950,1746106114447,500.0,0.00017999,2]
[359548951,1746106114497,500.0,0.00017999,2]
[359548952,1746106114549,500.0,0.00017999,2]
[359548953,1746106114598,500.0,0.00017999,2]
[359548954,1746106114646,500.0,0.00017999,2]
[359548955,1746106114768,248.96803213,0.00017999,2]
[359548956,1746106114814,500.0,0.00017999,2]
[359548957,1746106114870,500.0,0.00017999,2]
[359548958,1746106114919,500.0,0.00017999,2]
[359548959,1746106114972,500.0,0.00017999,2]
[359548960,1746106115025,500.0,0.00017999,2]
[359548961,1746106115103,500.0,0.00017999,2]
[359548962,1746106115205,500.0,0.00017999,2]
[359548963,1746106115282,500.0,0.00017999,2]
[359548964,1746106115403,500.0,0.00017999,2]
[359548965,1746106115565,500.0,0.00017999,2]
[359548966,1746106115605,500.0,0.00017999,2]
[359548967,1746106115643,500.0,0.00017999,2]
[359548968,1746106118079,-211.04107581,0.00018,2]
[359548969,1746106121220,1000.0,0.0001,2]
[359548970,1746106121765,-152.0,0.00018,2]
[359548971,1746106122951,447.239112,0.0002,120]
[359548972,1746106124495,-37624.0,0.00018,2]
[359548973,1746106124874,1733.14598539,0.00015,2]
[359548974,1746106125379,-163.048207,0.00018,2]
[359548975,1746106131792,-296.50962664,0.00018,2]
[359548976,1746106136586,-159.21582044,0.00018,2]
[359548977,1746106142272,300.0,0.00017999,2]
[359548987,1746106142955,-174.93605871,0.00018,2]
[359548988,1746106145144,-12961.97769864,0.00018,2]
[359548989,1746106146948,-165.84812085,0.00018,2]
[359548990,1746106148675,500.0,0.00017999,2]
[359548991,1746106148727,500.0,0.00017999,2]
[359548992,1746106148775,500.0,0.00017999,2]
[359548993,1746106148885,500.0,0.00017999,2]
[359548994,1746106148945,500.0,0.00017999,2]
[359548995,1746106149006,500.0,0.00017999,2]
[359548996,1746106149071,500.0,0.00017999,2]
[359548997,1746106149121,500.0,0.00017999,2]
[359548998,1746106149179,350.0,0.00017999,2]
[359548999,1746106149232,500.0,0.00017999,2]
[359549000,1746106149289,500.0,0.00017999,2]
[359549001,1746106151580,-247.1436186,0.00018,2]
[359549002,1746106154542,-292.78417956,0.00018,2]
[359549003,1746106158583,-207.21582044,0.00018,2]
[359549004,1746106162098,-329.7216009,0.00018,2]
[359549005,1746106166785,-250.0,0.00018,2]
[359549012,1746106172529,-77.11094615,0.00018,2]
[359549013,1746106172554,-220.91957878,0.00018,2]
[359549014,1746106177705,-152.0,0.00018,2]
[359549015,1746106180941,-207.08093353,0.00018,2]
[359549016,1746106186470,-232.50997298,0.00018,2]
[359549018,1746106192938,-252.30560862,0.00018,2]
[359549020,1746106196622,-236.57025733,0.00018,2]
[359549021,1746106199073,-644.19232268,0.00018,2]
[359549022,1746106203163,-281.59307997,0.00018,2]
[359549023,1746106208066,-206.21270637,0.00018,2]
[359549024,1746106213276,-262.11856056,0.00018,2]
[359549025,1746106215630,-4650.49697918,0.00018,2]
[359549026,1746106215653,-2430.0,0.00019706,2]
[359549027,1746106215674,-205.9467732,0.0002,2]
[359549028,1746106215696,-150.0,0.00020262,2]
[359549029,1746106215718,-1200.0,0.00021219,2]
[359549030,1746106215740,-326.60046631,0.0002122,2]
[359549031,1746106215762,-162.54506413,0.00021999,2]
[359549032,1746106215782,-300.0,0.00021999,2]
[359549033,1746106215803,-300.0,0.00021999,2]
[359549034,1746106215823,-3274.41071718,0.00022,2]
[359549056,1746106232394,-300.0,0.00021998,2]
[359549057,1746106232404,-4698.27182922,0.00022,2]
[359549058,1746106232414,-349.06597224,0.00022,2]
[359549060,1746106232423,-291.63108041,0.000221,2]
[359549062,1746106232433,-10651.0,0.000221,2]
[359549064,1746106232442,-1087.76966417,0.00022257,2]
[359549065,1746106232452,-221.92126,0.00022632,2]
[359549066,1746106232462,-1313.0,0.00023186,2]
[359549067,1746106232471,-10869.65603077,0.00023392,2]
[359549068,1746106232488,-1359.27408133,0.00023392,2]
[359549069,1746106232500,-152.98336857,0.00023632,2]
[359549070,1746106232510,-24900.0,0.00023873,2]
[359549071,1746106232520,-250.0,0.000239,2]
[359549072,1746106232531,-420.0,0.00023905,2]
[359549075,1746106232541,-420.0,0.00023906,2]
[359549077,1746106232551,-3139.34018769,0.00024,2]
[359549078,1746106232561,-1000.0,0.000248,2]
[359549080,1746106232571,-5954.72963774,0.000248,2]
[359549082,1746106232582,-5954.72963774,0.00024863,2]
[359549085,1746106232593,-1087.76966413,0.00024871,2]
[359549087,1746106232604,-500.0,0.00024873,2]
[359549088,1746106232613,-500.0,0.00024873,2]
[359549089,1746106232622,-500.0,0.00024873,2]
[359549090,1746106232633,-500.0,0.00024873,2]
[359549091,1746106232644,-500.0,0.00024873,2]
[359549092,1746106232654,-377.29312934,0.00024873,2]
[359549093,1746106232665,-500.0,0.00024873,2]
[359549094,1746106232676,-500.0,0.00024873,2]
[359549095,1746106232686,-500.0,0.00024873,2]
[359549096,1746106232696,-500.0,0.00024873,2]
[359549097,1746106232706,-500.0,0.00024873,2]
[359549098,1746106232717,-500.0,0.00024873,2]
[359549099,1746106232727,-500.0,0.00024873,2]
[359549100,1746106232737,-500.0,0.00024873,2]
[359549101,1746106232748,-500.0,0.00024873,2]
[359549102,1746106232759,-11909.4592755,0.0002489,2]
[359549103,1746106232769,-19690.22898679,0.000249,2]
[359549117,1746106238521,-10452.44554251,0.000249,2]
[359549118,1746106238532,-2173.55227702,0.000249,3]
[359549119,1746106238543,-80000.0,0.000249,2]
[359549120,1746106238554,-3520.2313151,0.000249,2]
[359549121,1746106238564,-164929.843349,0.000249,2]
[359549122,1746106238574,-206.74828452,0.000249,12]
[359549123,1746106238584,-206.74828446,0.000249,12]
[359549124,1746106238594,-206.74828446,0.000249,12]
[359549125,1746106238604,-206.74828446,0.000249,12]
[359549126,1746106238615,-206.74828446,0.000249,12]
[359549127,1746106238625,-309.39832824,0.000249,2]
[359549128,1746106238635,-451.40627492,0.00025,7]
[359549129,1746106238645,-2002.0,0.00025,14]
[359549130,1746106238655,-206.74828446,0.0002515,12]
[359549131,1746106238666,-841.10298755,0.00025181,2]
[359549132,1746106238675,-160.0,0.00025181,2]
[359549133,1746106238685,-12595.7684382,0.00025181,2]
[359549134,1746106238695,-182.07995741,0.00025181,2]
[359549135,1746106238705,-160.0,0.00025181,2]
[359549136,1746106238714,-421.4777418,0.00025181,2]
[359549137,1746106238724,-160.0,0.00025181,2]
[359549138,1746106238734,-160.0,0.00025181,2]
[359549139,1746106238744,-160.0,0.00025181,2]
[359549140,1746106238754,-160.0,0.00025185,2]
[359549141,1746106238764,-478.30796378,0.000255,120]
[359549142,1746106238773,-151.0,0.00025779,7]
[359549143,1746106238783,-151.0,0.00025779,7]
[359549144,1746106238793,-82464.9216747,0.0002579,2]
[359549145,1746106238803,-11909.4592755,0.0002579,2]
[359549146,1746106238813,-80000.0,0.000258,3]
[359549147,1746106238822,-151.0,0.000258,7]
[359549148,1746106238832,-151.0,0.000258,7]
[359549149,1746106238842,-158.695611,0.000258,7]
[359549150,1746106238852,-151.0,0.000258,7]
[359549151,1746106238862,-158.695611,0.000258,7]
[359549152,1746106238872,-151.0,0.000258,7]
[359549153,1746106238882,-435.391275,0.000258,7]
[359549154,1746106238892,-182.07995741,0.000258,3]
[359549155,1746106238903,-435.391275,0.000258,7]
[359549156,1746106238913,-151.0,0.000258,7]
[359549157,1746106238923,-151.0,0.000258,7]
[359549158,1746106238932,-160.0,0.000258,3]
[359549159,1746106238942,-160.0,0.000258,3]
[359549160,1746106238952,-421.4777418,0.000258,3]
[359549161,1746106238962,-151.0,0.000258,7]
[359549162,1746106238972,-151.0,0.000258,7]
[359549163,1746106238982,-1386.414997,0.000258,7]
[359549164,1746106238992,-179.623939,0.000258,7]
[359549165,1746106239002,-1386.414997,0.000258,7]
[359549166,1746106239013,-179.623939,0.000258,7]
[359549167,1746106239023,-841.10298755,0.000258,3]
[359549168,1746106239033,-839.71712,0.000258,7]
[359549169,1746106239043,-839.71712,0.000258,7]
[359549170,1746106239053,-12595.7684382,0.000258,3]
[359549171,1746106239063,-41232.4608374,0.00025921,2]
[359549172,1746106239073,-5954.72963774,0.00025921,2]
[359549173,1746106239083,-151.0,0.00025921,7]
[359549174,1746106239092,-2986.54994442,0.00025931,2]
[359549175,1746106239104,-587.0,0.00025976,2]
[359549176,1746106239114,-587.0,0.00025977,2]
[359549177,1746106239124,-206.74828446,0.000262,14]
[359549178,1746106239134,-388.67263728,0.00026288,2]
[359549179,1746106239144,-151.0,0.0002679,7]
[359549180,1746106239154,-151.0,0.0002679,7]
[359549181,1746106239164,-5954.72963774,0.0002679,2]
[359549182,1746106239174,-50000.0,0.000268,3]
[359549183,1746106239184,-151.0,0.000268,7]
[359549184,1746106239194,-151.0,0.000268,7]
[359549185,1746106239205,-151.0,0.000268,7]
[359549186,1746106239215,-151.0,0.000268,7]
[359549187,1746106239225,-182.07995741,0.000268,3]
[359549188,1746106239235,-151.0,0.000268,7]
[359549189,1746106239245,-151.0,0.000268,7]
[359549190,1746106239255,-4489.657385,0.000268,2]
[359549191,1746106239265,-160.0,0.000268,3]
[359549192,1746106239274,-4489.657385,0.000268,2]
[359549193,1746106239285,-151.0,0.000268,7]
[359549194,1746106239294,-151.0,0.000268,7]
[359549195,1746106239305,-151.0,0.000268,7]
[359549196,1746106239315,-1386.414997,0.000268,7]
[359549197,1746106239325,-156.936783,0.000268,7]
[359549198,1746106239335,-179.623939,0.000268,7]
[359549199,1746106239349,-1386.414997,0.000268,7]
[359549200,1746106239359,-179.623939,0.000268,7]
[359549201,1746106239370,-151.0,0.000268,7]
[359549202,1746106239381,-841.10298755,0.000268,7]
[359549203,1746106239392,-151.0,0.000268,7]
[359549204,1746106239402,-839.71712,0.000268,7]
[359549205,1746106239413,-839.71712,0.000268,7]
[359549206,1746106239423,-12595.7684382,0.000268,7]
[359549207,1746106239433,-206.74828446,0.0002725,16]
[359549208,1746106239443,-1010.086497,0.00027397,2]
[359549209,1746106239454,-1087.76966413,0.00027485,2]
[359549210,1746106239465,-3520.23131509,0.00027623,2]
[359549211,1746106239692,-5954.72963774,0.0002779,2]
[359549212,1746106239702,-50000.0,0.000278,3]
[359549213,1746106239712,-158.695611,0.000278,7]
[359549214,1746106239721,-158.695611,0.000278,7]
[359549215,1746106239731,-151.0,0.000278,7]
[359549216,1746106239741,-152.574943,0.000278,7]
[359549217,1746106239750,-435.391275,0.000278,7]
[359549218,1746106239760,-435.391275,0.000278,7]
[359549219,1746106239770,-823.0,0.00028228,2]
[359549220,1746106239780,-823.0,0.00028229,2]
[359549221,1746106239789,-206.74828446,0.000283,18]
[359549222,1746106239799,-11909.4592755,0.0002879,2]
[359549223,1746106239808,-60819.5655457,0.000288,3]
[359549224,1746106239818,-151.0,0.000288,7]
[359549225,1746106239827,-151.0,0.000288,7]
[359549226,1746106239837,-151.0,0.000288,7]
[359549227,1746106239847,-151.0,0.000288,7]
[359549228,1746106239857,-151.0,0.000288,7]
[359549229,1746106239867,-151.0,0.000288,7]
[359549230,1746106239877,-151.0,0.000288,7]
[359549232,1746106239887,-151.0,0.000288,7]
[359549233,1746106239896,-151.0,0.000288,7]
[359549234,1746106239905,-4489.657385,0.000288,2]
[359549235,1746106239914,-4489.657385,0.000288,2]
[359549236,1746106239923,-151.0,0.000288,7]
[359549237,1746106239933,-151.0,0.000288,7]
[359549238,1746106239943,-151.0,0.000288,7]
[359549239,1746106239952,-1386.414997,0.000288,7]
[359549241,1746106239962,-179.623939,0.000288,7]
[359549242,1746106239971,-1386.414997,0.000288,7]
[359549243,1746106239981,-179.623939,0.000288,7]
[359549244,1746106239990,-151.0,0.000288,7]
[359549245,1746106240000,-151.0,0.000288,7]
[359549246,1746106240010,-839.71712,0.000288,7]
[359549247,1746106240020,-839.71712,0.000288,7]
[359549248,1746106240030,-206.74828446,0.0002935,20]
[359549249,1746106240040,-566.586,0.00029783,2]
[359549250,1746106240049,-193.44525,0.0003,2]
[359549251,1746106240060,-250.0,0.0003,2]
[359549252,1746106240069,-250.0,0.0003,30]
[359549253,1746106240079,-260.0,0.0003,2]
[359549254,1746106240088,-5000.0,0.00030007,2]
[359549255,1746106240099,-707.0,0.00030073,2]
[359549256,1746106240108,-2245.0,0.00030073,2]
[359549257,1746106240117,-403.0,0.00030073,2]
[359549258,1746106240127,-1087.76966413,0.00030099,2]
[359549259,1746106240137,-362.0172928,0.00030137,30]
[359549260,1746106240146,-362.0172928,0.00030137,30]
[359549262,1746106240156,-362.0172928,0.00030137,30]
[359549263,1746106240166,-362.0172928,0.00030137,30]
[359549264,1746106240175,-362.0172928,0.00030137,30]
[359549265,1746106240184,-724.0345856,0.00030137,30]
[359549266,1746106240194,-362.0172928,0.00030137,30]
[359549267,1746106240204,-362.0172928,0.00030137,30]
[359549268,1746106240214,-362.0172928,0.00030137,30]
[359549269,1746106240224,-608.2552947,0.00030137,30]
[359549270,1746106240234,-155.0,0.00030137,2]
[359549271,1746106240243,-3520.23131509,0.00030345,2]
[359549273,1746106240253,-463.93799336,0.00030352,5]
[359549274,1746106240263,-1003.9234981,0.00030352,5]
[359549275,1746106240272,-1000.0,0.00030352,5]
[359549276,1746106240281,-509.25666339,0.00030352,5]
[359549277,1746106240290,-1000.0,0.00030352,5]
[359549278,1746106240300,-1000.0,0.00030352,5]
[359549280,1746106240309,-1000.0,0.00030352,5]
[359549281,1746106240319,-1000.0,0.00030352,5]
[359549282,1746106240328,-1000.0,0.00030352,2]
[359549283,1746106240338,-1000.0,0.00030352,5]
[359549284,1746106240348,-206.74828446,0.000304,22]
[359549285,1746106240357,-1152.0,0.00030674,2]
[359549287,1746106240367,-1152.0,0.00030675,2]
[359549289,1746106240377,-292.868,0.00031419,2]
[359549290,1746106240387,-150.0,0.00031419,2]
[359549291,1746106240397,-209.744,0.00031419,2]
[359549292,1746106240407,-206.74828446,0.0003145,25]
[359549293,1746106240416,-158.695611,0.00031546,7]
[359549294,1746106240425,-158.695611,0.00031546,7]
[359549295,1746106240435,-151.0,0.00031546,7]
[359549296,1746106240445,-435.391275,0.00031546,7]
[359549297,1746106240455,-435.391275,0.00031546,7]
[359549298,1746106240466,-153.0,0.00031644,30]
[359549299,1746106240476,-151.0,0.000318,7]
[359549300,1746106240487,-151.0,0.000318,7]
[359549301,1746106240497,-185.663178,0.000318,7]
[359549302,1746106240507,-352.236414,0.000318,7]
[359549303,1746106240517,-352.236414,0.000318,7]
[359549304,1746106240527,-151.0,0.000318,7]
[359549306,1746106240538,-151.0,0.000318,7]
[359549307,1746106240548,-186.921263,0.000318,7]
[359549308,1746106240558,-186.921263,0.000318,7]
[359549309,1746106240569,-151.0,0.000318,7]
[359549310,1746106240579,-6116.30517559,0.000318,10]
[359549312,1746106240589,-150.112017,0.000319,2]
[359549313,1746106240598,-5954.72963774,0.0003197,2]
[359549314,1746106240608,-151.0,0.0003198,7]
[359549315,1746106240617,-903.467365,0.0003198,7]
[359549316,1746106240627,-903.467365,0.0003198,7]
[359549317,1746106240637,-375.342705,0.0003198,7]
[359549318,1746106240646,-375.342705,0.0003198,7]
[359549319,1746106240656,-272.895806,0.0003198,7]
[359549320,1746106240666,-272.895806,0.0003198,7]
[359549321,1746106240676,-151.0,0.0003198,7]
[359549322,1746106240685,-316.844648,0.0003198,7]
[359549323,1746106240695,-316.844648,0.0003198,7]
[359549325,1746106240705,-160.0,0.0003198,7]
[359549326,1746106240714,-160.0,0.0003198,7]
[359549328,1746106240723,-421.4777418,0.0003198,7]
[359549330,1746106240733,-3734.55174343,0.0003199,10]
[359549331,1746106241609,-11246.3353615,0.0003199,10]
[359549332,1746106241622,-4315.0,0.0003199,10]
[359549350,1746106243640,-8658.42437088,0.0003199,10]
[359549370,1746106246646,-12954.97355739,0.0003199,10]
[359549371,1746106246658,-7287.69041086,0.0003199,10]
[359549372,1746106247344,-1397.41012342,0.0003199,10]
[359549373,1746106248938,500.0,0.00017999,2]
[359549374,1746106265829,500.0,0.00017999,2]
[359549375,1746106265879,500.0,0.00017999,2]
[359549376,1746106265929,186.16920733,0.00017999,2]
[359549377,1746106265983,500.0,0.00017999,2]
[359549378,1746106266109,500.0,0.00017999,2]
[359549379,1746106266158,500.0,0.00017999,2]
[359549380,1746106266227,500.0,0.00017999,2]
[359549381,1746106266278,500.0,0.00017999,2]
[359549382,1746106266324,500.0,0.00017999,2]
[359549383,1746106266405,500.0,0.00017999,2]
[359549384,1746106266485,500.0,0.00017999,2]
[359549385,1746106266546,500.0,0.00017999,2]
[359549386,1746106290246,500.0,0.00017999,2]
[359549387,1746106381058,-159.9897165,0.00021999,2]
[359549388,1746106381082,-300.0,0.00022098,2]
[359549389,1746106381106,-420.0,0.00024011,2]
[359549390,1746106381128,-250.0,0.00025594,2]
[359549391,1746106381151,-160.0,0.000258,3]
[359549392,1746106381179,-107.0102835,0.0002592,2]
[359549396,1746106868911,-263.64527387,0.00021798,2]
[359549397,1746106868935,-3434.04257216,0.00021898,2]
[359549398,1746106868959,-1000.0,0.00021998,2]
[359549399,1746106868982,-247.6634563,0.00024115,2]
[359549400,1746106869006,-221.921261,0.00024567,2]
[359549401,1746106869028,-326.8652195,0.00024647,2]
[359549402,1746106869052,-1704.8178183,0.00024845,2]
[359549403,1746106869079,-2158.0185566,0.00025044,2]
[359549404,1746106869104,-250.0,0.000257,2]
[359549405,1746106869129,-300.0,0.00025799,2]
[359549406,1746106869153,-500.0,0.00025799,2]
[359549407,1746106869183,-500.0,0.00025799,2]
[359549408,1746106869208,-447.79028882,0.00025799,2]
[359549409,1746106869239,-500.0,0.00025799,2]
[359549410,1746106869269,-500.0,0.00025799,2]
[359549411,1746106869299,-517.06323989,0.00025799,2]
[359549412,1746106869324,-504.426744,0.000258,7]
[359549413,1746106869349,-504.426744,0.000258,7]